bitfinex/quotes_ETHUSD_20220111
["timestamp","ask_amount","ask_price","bid_price","bid_amount"]
[1641918708334,1.02050277,3212.0,3211.3,2.41497624]
[1641918708832,0.00284212,3211.9,3211.0,0.25]
[1641918709132,0.0022737,3211.8,3211.1,0.00170527]
[1641918709333,3.32007459,3211.2,3211.1,0.00170527]
[1641918710033,0.77904,3210.5,3209.5,2.66497624]
[1641918710438,1.04608441,3209.7,3209.6,0.00852635]
[1641918710634,1.04608441,3209.7,3209.5,2.41497624]
[1641918711033,1.82530441,3209.7,3209.4,2.41497624]
[1641918711232,1.82530441,3209.7,3208.4,0.01223004]
[1641918711472,4.54508037,3209.6,3207.2,26.81510192]
[1641918711669,4.15,3209.4,3207.9,2.04132565]
[1641918711868,0.85915528,3208.5,3207.9,2.04132565]
[1641918712068,0.85915528,3208.5,3208.0,0.00284212]
[1641918713264,1.63867528,3208.5,3208.0,0.00284212]
[1641918713963,0.85915528,3208.5,3208.0,0.00284212]
[1641918714164,0.00454739,3209.3,3208.0,0.00284212]
[1641918714365,0.00454739,3209.3,3208.7,0.5285093]
[1641918714566,5.39642588,3209.7,3208.7,0.5285093]
[1641918714567,0.00397897,3209.2,3208.7,0.5285093]
[1641918714763,0.00397897,3209.2,3208.8,0.05546398]
[1641918714964,0.00397897,3209.2,3208.0,0.01510148]
[1641918714965,0.00341054,3209.1,3208.1,0.77912]
[1641918715216,0.00341054,3209.1,3208.0,0.01510148]
[1641918715217,1.02267368,3209.1,3208.0,0.01510148]
[1641918715421,0.00284212,3209.0,3208.2,0.00170527]
[1641918715618,0.00284212,3209.0,3208.1,0.00227369]
[1641918715814,0.03541588,3209.7,3208.6,0.66370192]
[1641918715815,0.0022737,3208.9,3208.6,0.66370192]
[1641918716015,0.0022737,3208.9,3208.7,0.09045156]
[1641918716216,0.00170527,3208.8,3208.6,0.66370192]
[1641918716416,0.00170527,3208.8,3208.7,5.15]
[1641918716617,0.03541588,3209.7,3208.8,0.05790639]
[1641918716816,1.12886834,3209.5,3208.7,8.26149797]
[1641918717015,1.12886834,3209.5,3208.7,7.98311666]
[1641918717215,1.12886834,3209.5,3208.7,5.15]
[1641918717414,1.12886834,3209.5,3208.7,7.97995812]
[1641918717613,0.03533225,3208.8,3208.5,0.25]
[1641918718021,0.00113685,3208.7,3208.5,0.25]
[1641918718617,5.72214181,3210.4,3208.9,0.58861224]
[1641918718868,5.72214181,3210.4,3209.1,2.35]
[1641918718869,5.14014145,3210.4,3209.1,2.35]
[1641918719064,0.00682108,3209.9,3209.1,2.35]
[1641918719463,0.00625266,3209.8,3209.2,3.0583937]
[1641918719669,0.00625266,3209.8,3209.4,0.01289799]
[1641918719864,5.14014145,3210.4,3209.5,0.69874274]
[1641918719865,0.00568423,3209.7,3209.5,0.69874274]
[1641918720064,0.00568423,3209.7,3209.5,0.64975729]
[1641918720264,0.00511581,3209.6,3209.5,0.64975729]
[1641918721066,0.00511581,3209.6,3209.2,0.25]
[1641918721466,0.00454739,3209.5,3209.2,0.25]
[1641918721665,1.07994925,3210.2,3209.2,0.25]
[1641918721865,1.07994925,3210.2,3209.3,0.00113685]
[1641918722066,0.00341054,3210.1,3209.3,0.00113685]
[1641918722466,0.00284211,3210.0,3209.4,0.0560896]
[1641918722732,0.00284211,3210.0,3209.5,0.15113893]
[1641918722934,4.5296,3211.2,3209.7,18.71]
[1641918722935,7.369e-05,3209.9,3209.7,18.71]
[1641918723129,7.369e-05,3209.9,3209.8,10.34619308]
[1641918723332,4.5296,3211.2,3209.8,11.90340308]
[1641918723333,0.00689477,3211.1,3209.8,11.90340308]
[1641918723528,0.00689477,3211.1,3209.8,7.3]
[1641918723729,0.00632635,3211.0,3209.8,10.59619308]
[1641918723934,0.00632635,3211.0,3210.2,0.01273373]
[1641918724131,0.00575792,3210.9,3210.3,0.75519492]
[1641918724528,4.5296,3211.2,3210.3,0.75519492]
[1641918724529,0.0051895,3210.8,3210.3,0.66919049]
[1641918724930,0.00462108,3210.7,3210.3,0.66919049]
[1641918725131,0.00462108,3210.7,3210.4,0.0979606]
[1641918725331,0.00405265,3210.6,3210.2,0.01273373]
[1641918725531,0.00405265,3210.6,3209.8,0.25]
[1641918725735,4.5296,3211.2,3209.8,3.29619308]
[1641918725736,0.00348423,3210.5,3209.8,3.29619308]
[1641918725945,0.00348423,3210.5,3209.9,0.374]
[1641918726133,0.84047257,3211.2,3210.5,0.07915514]
[1641918726386,0.84047257,3211.2,3210.0,3.04619308]
[1641918726574,0.00689477,3211.1,3209.8,0.26275531]
[1641918726774,0.00689477,3211.1,3209.8,0.25]
[1641918727073,0.51133567,3210.6,3209.8,0.25]
[1641918727274,1.06460533,3210.2,3209.8,0.25]
[1641918727477,1.06460533,3210.2,3210.0,0.01161213]
[1641918727672,1.06460533,3210.2,3209.6,0.00163158]
[1641918727673,0.00121054,3210.1,3209.6,0.00163158]
[1641918727876,0.00121054,3210.1,3209.4,0.25]
[1641918728076,6.70849,3210.0,3208.0,0.01226554]
[1641918728274,0.93923751,3209.9,3208.8,0.25]
[1641918728480,0.93923751,3209.9,3208.0,0.01226554]
[1641918728481,0.77924,3209.6,3208.0,0.01226554]
[1641918728676,0.77924,3209.6,3208.8,0.25]
[1641918728876,0.37570527,3209.5,3208.1,0.00625266]
[1641918729075,0.37570527,3209.5,3207.1,0.01243827]
[1641918729076,1.55914,3208.9,3207.1,0.01243827]
[1641918729277,1.55914,3208.9,3207.3,0.25]
[1641918729476,0.78354896,3208.8,3207.4,0.59232367]
[1641918729675,0.92318784,3208.6,3207.4,0.54232367]
[1641918729875,0.92318784,3208.6,3207.5,0.00341054]
[1641918730117,0.00227369,3208.5,3207.5,0.00341054]
[1641918730316,0.00227369,3208.5,3207.4,0.00397897]
[1641918730523,0.00170527,3208.4,3207.4,0.00397897]
[1641918730918,0.92318784,3208.6,3207.4,0.00397897]
[1641918730919,0.00113684,3208.3,3207.4,0.00397897]
[1641918731125,4.20256866,3209.2,3209.0,2.19007532]
[1641918731322,4.45,3209.0,3207.5,6.3]
[1641918731524,0.00113685,3208.5,3207.5,6.3]
[1641918731720,0.00113685,3208.5,3207.6,0.00397896]
[1641918732120,0.89810367,3208.5,3207.6,0.52343059]
[1641918732322,0.00113685,3208.5,3207.7,3.12023528]
[1641918732521,0.00113685,3208.5,3207.8,0.10903797]
[1641918732722,0.00113685,3208.5,3207.8,0.11188008]
[1641918732921,0.00113685,3208.5,3207.9,0.00227369]
[1641918733625,0.00113685,3208.5,3207.8,0.00284211]
[1641918734066,1.086849,3208.5,3207.8,0.00284211]
[1641918734264,5.977409,3209.8,3208.0,0.09930253]
[1641918734465,5.977409,3209.8,3207.9,3.6]
[1641918734466,0.77936,3209.1,3207.9,3.6]
[1641918734665,0.77936,3209.1,3207.7,0.25]
[1641918734666,0.00170527,3208.8,3208.1,0.00227369]
[1641918734864,0.00170527,3208.8,3208.0,0.00284212]
[1641918735065,0.00113685,3208.7,3207.8,0.00397896]
[1641918735266,0.00113685,3208.7,3207.9,0.05931278]
[1641918735466,0.00682108,3209.7,3207.8,0.00397896]
[1641918735667,0.00682108,3209.7,3207.7,0.25]
[1641918735668,0.49669199,3209.2,3208.0,0.00284212]
[1641918735866,6.277409,3209.8,3207.8,0.00397896]
[1641918735867,0.85830126,3208.8,3207.8,0.00397896]
[1641918736068,0.00341054,3209.1,3208.0,0.01239233]
[1641918736270,5.977409,3209.8,3208.1,0.374]
[1641918736271,0.00113685,3208.7,3208.1,0.374]
[1641918736471,7.79132,3212.3,3208.7,0.07772618]
[1641918736472,0.00284212,3209.0,3208.7,0.07772618]
[1641918736667,8.36674754,3211.1,3208.8,0.374]
[1641918736668,0.00682108,3209.7,3208.8,0.374]
[1641918736967,1.13902114,3209.9,3208.9,3.44676682]
[1641918737169,1.13902114,3209.9,3209.0,1.0]
[1641918737614,0.01364216,3210.9,3209.1,3.07276682]
[1641918737919,0.01307374,3210.8,3209.2,0.05098732]
[1641918738117,0.01307374,3210.8,3209.6,0.77881]
[1641918738319,0.01250532,3210.7,3209.4,0.49675291]
[1641918738518,0.01250532,3210.7,3209.1,3.34916675]
[1641918738715,0.64134186,3210.9,3209.1,3.34916675]
[1641918738716,0.01193689,3210.6,3209.1,3.34916675]
[1641918738921,0.87885544,3209.8,3209.1,3.34916675]
[1641918739119,0.01136847,3210.5,3209.2,0.07260036]
[1641918739317,0.00682108,3209.7,3209.2,0.77889]
[1641918739518,0.00682108,3209.7,3208.9,0.374]
[1641918739519,4.4384,3211.0,3208.8,0.25]
[1641918739524,0.01262888,3209.8,3208.8,0.25]
[1641918739720,0.00625266,3209.6,3208.8,0.25]
[1641918740017,0.00568424,3209.5,3208.8,0.25]
[1641918740218,0.95189217,3209.2,3208.8,0.25]
[1641918740419,0.00511581,3209.4,3208.8,0.25]
[1641918740618,0.00341054,3209.1,3208.8,0.92723495]
[1641918740819,0.00454739,3209.3,3208.8,0.92723495]
[1641918741026,0.00284212,3209.0,3208.8,0.92723495]
[1641918741220,0.00397897,3209.2,3208.8,0.25]
[1641918741473,5.0,3210.0,3208.8,0.25]
[1641918741474,0.0022737,3208.9,3208.8,0.25]
[1641918741671,0.00341054,3209.1,3208.9,0.01238052]
[1641918741869,5.0,3210.0,3208.9,0.01238052]
[1641918742169,0.00795793,3209.9,3208.9,0.01238052]
[1641918742568,5.0,3210.0,3209.1,0.0307973]
[1641918742569,0.00738951,3209.8,3209.1,0.0307973]
[1641918742870,0.01268603,3213.1,3209.7,0.01257024]
[1641918743068,1.2443,3213.5,3209.7,0.01257024]
[1641918743069,0.77852,3212.5,3210.4,0.01217102]
[1641918743468,3.09568,3212.7,3210.6,18.79096839]
[1641918743668,3.09568,3212.7,3210.8,0.77852]
[1641918743669,0.96220327,3211.6,3210.8,0.77852]
[1641918743872,0.96220327,3211.6,3210.2,3.07276682]
[1641918744072,0.96220327,3211.6,3210.3,0.25]
[1641918744870,0.96220327,3211.6,3210.4,0.07230279]
[1641918745109,1.08921012,3210.9,3210.3,0.25]
[1641918745510,6.8175,3211.7,3210.3,0.25]
[1641918745511,0.00568423,3210.8,3210.3,0.25]
[1641918745915,0.00511581,3210.7,3210.5,0.77861]
[1641918746112,0.00511581,3210.7,3210.3,0.25]
[1641918746314,0.00454738,3210.6,3210.3,0.25]
[1641918746617,0.96628176,3210.9,3210.3,0.25]
[1641918746914,0.96628176,3210.9,3210.4,0.00113684]
[1641918747113,0.96628176,3210.9,3210.5,0.0495382]
[1641918747413,0.96628176,3210.9,3210.5,0.03048141]
[1641918748012,1.26628176,3210.9,3210.5,0.03048141]
[1641918749069,1.26628176,3210.9,3208.9,3.10473768]
[1641918749070,6.3,3210.8,3208.9,3.10473768]
[1641918749269,6.3,3210.8,3209.6,0.25]
[1641918749270,0.0128692,3210.6,3209.6,0.25]
[1641918749464,0.0128692,3210.6,3209.7,0.00397897]
[1641918749762,6.60284212,3210.5,3209.7,0.00170527]
[1641918750164,1.71019676,3210.4,3209.7,0.00170527]
[1641918750363,0.93111676,3210.4,3209.7,0.00170527]
[1641918750566,0.00170527,3210.3,3209.7,0.00170527]
[1641918750866,1.22884306,3210.4,3208.5,0.25]
[1641918750867,6.67513685,3210.2,3208.5,0.25]
[1641918751065,1.374,3210.1,3208.5,0.25]
[1641918751264,1.374,3210.1,3208.6,0.00625266]
[1641918751265,1.55881,3209.3,3208.6,0.00625266]
[1641918751468,0.81572824,3208.7,3208.6,0.00625266]
[1641918751769,2.33985527,3210.0,3208.6,0.00625266]
[1641918751770,0.37570527,3210.0,3208.6,0.00625266]
[1641918751965,0.67570527,3210.0,3208.6,0.00625266]
[1641918752164,3.37109685,3210.2,3208.8,0.08746605]
[1641918752364,1.93247,3210.1,3208.7,4.55]
[1641918752614,0.77925,3209.7,3208.9,0.00568423]
[1641918752811,0.83252413,3209.0,3208.8,0.00625266]
[1641918753116,0.83252413,3209.0,3208.5,0.25]
[1641918753117,0.83252413,3209.0,3208.6,0.00738951]
[1641918753511,6.11396456,3210.1,3208.6,0.00738951]
[1641918753512,0.80963879,3210.1,3208.6,0.00738951]
[1641918753711,0.03048879,3210.1,3208.7,0.06261251]
[1641918753915,0.03048879,3210.1,3208.6,0.00738951]
[1641918754110,0.03048879,3210.1,3208.5,0.25]
[1641918754111,0.03048879,3210.1,3208.8,0.00625266]
[1641918754314,0.03048879,3210.1,3208.6,0.00738951]
[1641918754511,0.86249612,3209.3,3209.1,0.67208696]
[1641918754913,1.07540489,3209.3,3209.2,0.00397896]
[1641918755212,1.07540489,3209.3,3209.2,0.00511581]
[1641918755814,1.07540489,3209.3,3208.6,0.00852636]
[1641918756213,1.37540489,3209.3,3208.6,0.00852636]
[1641918756665,0.374,3210.0,3208.6,0.00852636]
[1641918756666,0.77927,3209.6,3208.6,0.00852636]
[1641918756873,1.38504491,3210.3,3208.6,0.00852636]
[1641918757065,3.9747,3210.4,3208.7,0.08282671]
[1641918757269,3.9747,3210.4,3208.6,0.00852636]
[1641918757467,0.00113684,3210.3,3209.2,0.52563043]
[1641918757868,1.09198296,3209.5,3209.3,0.00454739]
[1641918758266,1.09198296,3209.5,3208.9,0.00682108]
[1641918758466,1.09198296,3209.5,3208.8,0.00738951]
[1641918759065,0.9261124,3208.9,3208.8,0.00738951]
[1641918759266,2.23531109,3209.7,3208.8,0.00738951]
[1641918759469,2.60931109,3209.7,3208.9,0.05078833]
[1641918759867,2.60931109,3209.7,3209.0,0.00625266]
[1641918760314,2.60931109,3209.7,3208.7,0.02994551]
[1641918760315,0.60845781,3209.4,3208.8,0.00738951]
[1641918760917,0.77945,3209.1,3208.8,0.00738951]
[1641918761121,0.08250492,3209.0,3208.8,0.00738951]
[1641918761515,4.08690263,3208.9,3208.8,0.00738951]
[1641918762919,1.03690263,3208.9,3208.8,0.00738951]
[1641918764770,3.53690263,3208.9,3208.8,0.00738951]
[1641918764967,0.08250492,3209.0,3208.8,0.00738951]
[1641918765172,0.08250492,3209.0,3208.8,0.08693864]
[1641918765367,0.08250492,3209.0,3208.8,0.07616923]
[1641918765568,0.08250492,3209.0,3208.9,6.30682108]
[1641918765966,0.08250492,3209.0,3208.9,0.00682108]
[1641918766369,0.08250492,3209.0,3208.8,0.00738951]
[1641918766772,0.86192492,3209.0,3208.8,0.00738951]
[1641918766972,0.86192492,3209.0,3208.7,3.502e-05]
[1641918767615,0.86192492,3209.0,3208.4,0.25]
[1641918767816,0.86192492,3209.0,3208.5,0.06093845]
[1641918768016,4.85,3208.9,3208.4,0.25]
[1641918768217,0.77957,3208.7,3208.4,0.23819919]
[1641918768617,1.51038128,3208.6,3208.4,0.23819919]
[1641918768815,1.51038128,3208.6,3208.4,9.919e-05]
[1641918769418,0.84756636,3208.6,3208.4,9.919e-05]
[1641918769616,0.0022737,3208.9,3208.4,0.05037223]
[1641918769816,0.0022737,3208.9,3208.4,9.919e-05]
[1641918770019,0.00170527,3208.8,3208.5,0.04930288]
[1641918770216,0.00170527,3208.8,3208.4,9.919e-05]
[1641918770420,0.00113685,3208.7,3208.5,0.05205536]
[1641918770817,0.0022737,3208.9,3208.4,9.919e-05]
[1641918771217,0.00170527,3208.8,3208.4,9.919e-05]
[1641918771669,0.00113685,3208.7,3208.4,9.919e-05]
[1641918772071,0.08250492,3209.0,3208.4,9.919e-05]
[1641918772072,0.0022737,3208.9,3208.4,9.919e-05]
[1641918772269,0.82251574,3208.8,3208.4,9.919e-05]
[1641918772469,0.00170527,3208.8,3208.1,3.14065844]
[1641918772677,0.00113685,3208.7,3208.1,3.14065844]
[1641918772872,0.00113685,3208.7,3208.3,0.77918]
[1641918773070,0.00113685,3208.7,3208.4,3.21954513]
[1641918773471,0.00113685,3208.7,3208.5,0.56048112]
[1641918773876,4.3074,3210.3,3208.2,0.00170527]
[1641918773877,0.53807479,3210.5,3208.3,6.3]
[1641918774172,0.00113685,3208.9,3208.5,0.08544168]
[1641918774571,0.00113685,3208.9,3208.5,0.25]
[1641918774972,1.13741914,3208.8,3208.5,0.25]
[1641918777420,1.16678056,3208.8,3208.5,0.25]
[1641918778871,0.77947,3208.7,3208.5,0.25]
[1641918779073,4.26025134,3209.6,3208.5,0.25]
[1641918779074,3.33029827,3209.7,3208.6,0.09489043]
[1641918779273,4.33221,3211.0,3208.6,0.10742402]
[1641918779274,1.1744,3209.9,3208.6,0.10742402]
[1641918779475,1.1744,3209.9,3208.8,0.06878954]
[1641918779476,0.00341054,3209.5,3208.8,0.06878954]
[1641918779673,0.32741054,3210.0,3208.8,6.3]
[1641918779873,0.77923,3209.7,3208.8,6.3]
[1641918780074,0.77923,3209.7,3208.9,0.00341054]
[1641918780274,0.00170527,3209.8,3208.9,3.15656152]
[1641918780477,0.00170527,3209.8,3208.9,0.00341054]
[1641918780674,0.00113684,3209.7,3209.0,0.00284212]
[1641918780874,0.00113684,3209.7,3208.7,0.00454739]
[1641918781081,0.00227369,3209.9,3208.7,0.00454739]
[1641918781277,0.77928,3209.5,3208.7,0.00454739]
[1641918781480,0.59994783,3209.0,3208.7,0.00454739]
[1641918781678,0.8444644,3208.9,3208.7,0.00454739]
[1641918781878,0.8444644,3208.9,3208.6,0.00511582]
[1641918782379,1.9238744,3208.9,3208.6,0.00511582]
[1641918782631,1.9238744,3208.9,3208.5,0.25]
[1641918782632,2.2978744,3208.9,3207.5,0.13819997]
[1641918782823,0.00113685,3208.8,3207.5,0.13819997]
[1641918783028,0.3,3208.5,3207.6,0.00568423]
[1641918783223,0.85384249,3207.8,3207.6,0.00568423]
[1641918783625,0.00113685,3208.8,3207.6,0.00568423]
[1641918784024,0.00113685,3208.8,3208.2,0.61216779]
[1641918784225,0.00113685,3208.8,3208.3,0.07533273]
[1641918784424,0.00113685,3208.8,3208.3,0.00170527]
[1641918784627,0.00113685,3208.8,3208.4,0.00113684]
[1641918784825,0.00113685,3208.8,3208.3,0.00170527]
[1641918787278,1.01365053,3208.6,3208.3,0.00170527]
[1641918787475,1.01365053,3208.6,3208.2,0.00227369]
[1641918787677,1.01365053,3208.6,3208.0,0.00341054]
[1641918787875,0.00113685,3208.8,3208.0,0.00341054]
[1641918788075,0.00113685,3208.8,3208.3,0.01267042]
[1641918788479,0.00113685,3208.8,3208.4,0.00113684]
[1641918788676,0.00113685,3208.8,3208.5,0.05439384]
[1641918789177,0.00113685,3208.8,3208.6,0.52318328]
[1641918790220,0.00113685,3208.8,3208.7,9.21532631]
[1641918790418,0.00113685,3208.8,3208.7,6.3]
[1641918791016,0.00113685,3208.8,3208.4,0.00113684]
[1641918791418,0.00113685,3208.8,3208.3,2.96950859]
[1641918791616,0.00113685,3208.8,3208.3,2.92121386]
[1641918791816,0.00113685,3208.8,3208.4,0.00113684]
[1641918792416,0.00113685,3208.8,3208.3,3.116]
[1641918792818,0.00113685,3208.8,3208.4,0.00113684]
[1641918794467,0.00113685,3208.8,3208.4,2.83935969]
[1641918794769,0.00113685,3208.8,3208.5,0.05108144]
[1641918794965,0.00113685,3208.8,3208.4,0.00113684]
[1641918795365,0.00113685,3208.8,3208.4,22.85251819]
[1641918795569,0.03381368,3209.7,3208.6,0.09410517]
[1641918795771,0.03381368,3209.7,3208.7,0.01238032]
[1641918795969,0.00454739,3209.6,3208.7,18.72238032]
[1641918796165,3.677,3211.1,3209.6,0.08247237]
[1641918796366,3.677,3211.1,3209.5,0.01271098]
[1641918796565,0.00795793,3211.0,3209.8,0.77884]
[1641918796766,0.00795793,3211.0,3209.5,1.82034098]
[1641918796767,1.11470905,3210.4,3209.5,1.82034098]
[1641918797067,1.11470905,3210.4,3209.5,0.26271098]
[1641918797068,0.00397896,3210.3,3209.5,0.26271098]
[1641918797268,0.00397896,3210.3,3209.5,0.25]
[1641918797465,0.00341054,3210.2,3209.5,0.25]
[1641918797725,0.00341054,3210.2,3209.5,0.7457594]
[1641918797930,0.00284212,3210.1,3209.5,0.7457594]
[1641918798127,0.00284212,3210.1,3209.6,3.06204907]
[1641918798426,1.0,3212.2,3209.6,3.06204907]
[1641918798427,3.8487,3212.5,3210.2,0.09930253]
[1641918798632,3.6502,3212.5,3210.3,0.65039993]
[1641918798826,3.6502,3212.5,3210.4,3.37893032]
[1641918798827,0.01248594,3212.4,3210.4,3.37893032]
[1641918799026,0.01248594,3212.4,3210.5,0.374]
[1641918799226,0.61434059,3212.1,3210.6,3.73596484]
[1641918799430,1.02376064,3211.3,3210.6,3.12893032]
[1641918799632,1.02376064,3211.3,3210.5,2.55712]
[1641918799827,0.00625265,3211.2,3210.5,1.55712]
[1641918800027,0.00625265,3211.2,3210.4,0.25]
[1641918800233,0.00568423,3211.1,3210.4,0.25]
[1641918800630,1.56264353,3211.3,3210.4,0.25]
[1641918800631,0.00511581,3211.0,3210.4,0.25]
[1641918800830,0.85889399,3210.8,3210.4,0.25]
[1641918801039,1.5574,3212.3,3210.4,3.37893032]
[1641918801040,0.00454738,3210.9,3210.4,3.37893032]
[1641918801234,0.00341054,3210.7,3210.4,3.37893032]
[1641918801467,0.00397896,3210.8,3210.6,0.01258453]
[1641918801667,3.6502,3212.5,3211.2,0.67450913]
[1641918801868,1.13140101,3211.8,3210.6,3.14151485]
[1641918802067,1.13140101,3211.8,3210.8,0.77856]
[1641918802270,1.13140101,3211.8,3210.7,1.0]
[1641918802474,1.13140101,3211.8,3210.7,0.03049803]
[1641918802972,0.53215769,3211.6,3210.7,0.03049803]
[1641918803168,1.10838383,3210.9,3210.7,0.03049803]
[1641918803569,0.00397896,3210.8,3210.7,0.03049803]
[1641918805139,0.00397896,3210.8,3209.7,0.0022737]
[1641918805534,1.03418736,3209.8,3209.7,0.0022737]
[1641918805934,0.49695366,3210.4,3209.7,0.0022737]
[1641918806137,0.00397896,3210.8,3209.8,0.0538327]
[1641918806338,0.00113684,3210.3,3209.7,0.0022737]
[1641918806536,0.00341054,3210.7,3209.9,0.00113685]
[1641918806736,0.78300896,3210.8,3209.7,0.0022737]
[1641918807036,0.00341054,3210.7,3209.7,0.0022737]
[1641918807236,0.51379474,3210.5,3209.7,0.0022737]
[1641918807537,0.03131197,3210.4,3209.7,0.0022737]
[1641918807937,0.82788553,3209.9,3209.7,0.0022737]
[1641918808973,0.82788553,3209.9,3209.7,0.055587]
[1641918809368,0.82788553,3209.9,3209.8,0.00170527]
[1641918809969,0.82788553,3209.9,3209.7,0.0022737]
[1641918811774,0.77788553,3209.9,3209.7,0.05956586]
[1641918811973,0.77788553,3209.9,3209.7,0.0022737]
[1641918812174,0.77788553,3209.9,3209.8,0.00170527]
[1641918812373,0.77788553,3209.9,3209.7,0.07026089]
[1641918812624,0.77788553,3209.9,3209.7,0.0022737]
[1641918812625,0.81110817,3209.9,3209.7,0.0022737]
[1641918812822,0.81110817,3209.9,3209.8,0.00170527]
[1641918813020,0.77910817,3209.9,3209.7,0.0022737]
[1641918813220,0.77910817,3209.9,3209.7,0.065702]
[1641918813423,0.77910817,3209.9,3209.7,0.0022737]
[1641918813724,0.77910817,3209.9,3209.4,0.25]
[1641918813725,2.65,3209.8,3209.4,0.25]
[1641918813921,2.65,3209.8,3208.3,3.116]
[1641918814125,2.95,3209.8,3209.5,0.00170527]
[1641918814522,0.55127413,3209.6,3209.2,0.00341054]
[1641918814723,0.77933,3209.4,3209.2,0.00341054]
[1641918814923,1.11808517,3209.3,3209.2,0.00341054]
[1641918815120,1.41808517,3209.3,3209.2,0.00341054]
[1641918815922,1.11808517,3209.3,3209.2,0.00341054]
[1641918816370,1.41808517,3209.3,3209.2,0.00341054]
[1641918817675,3.11722,3211.1,3209.2,0.0344328]
[1641918817867,7.6038,3212.1,3209.2,0.0344328]
[1641918817868,3.9494,3210.9,3209.2,0.0344328]
[1641918818067,3.9494,3210.9,3209.1,0.25]
[1641918818068,0.00568423,3210.2,3209.1,0.25]
[1641918818468,7.9879,3211.2,3209.1,0.25]
[1641918818469,0.00511581,3210.1,3209.1,0.25]
[1641918818769,7.9879,3211.2,3209.1,0.25]
[1641918818770,0.84959466,3209.7,3209.1,0.25]
[1641918819172,0.00227369,3209.6,3209.1,0.25]
[1641918819570,0.83577669,3209.7,3209.1,0.25]
[1641918819773,0.83577669,3209.7,3209.2,0.00170527]
[1641918820519,0.83577669,3209.7,3209.3,0.03602253]
[1641918820727,9.95128,3211.2,3209.2,0.00170527]
[1641918820728,7.9879,3211.2,3209.2,0.00170527]
[1641918820930,7.9879,3211.2,3209.3,0.06171917]
[1641918820931,7.6139,3211.2,3209.3,0.06171917]
[1641918821124,0.00397896,3210.2,3209.3,0.01270112]
[1641918821330,0.00397896,3210.2,3209.3,3.12851958]
[1641918821523,0.00341054,3210.1,3210.0,7.00359652]
[1641918821726,1.00522551,3211.3,3210.1,6.3034]
[1641918822123,0.00568423,3211.1,3210.2,1.0]
[1641918822322,0.00568423,3211.1,3210.1,6.6034]
[1641918822524,0.08219857,3211.0,3210.1,6.3034]
[1641918822725,0.00511581,3211.0,3210.1,6.3034]
[1641918822923,0.85504733,3210.3,3209.8,1.55751]
[1641918823123,0.85504733,3210.3,3209.6,0.624]
[1641918823124,0.05386106,3210.2,3209.6,0.25]
[1641918823324,0.85504733,3210.3,3209.9,0.00113685]
[1641918823523,0.85504733,3210.3,3209.7,0.7811237]
[1641918823971,0.85504733,3210.3,3209.8,0.00170527]
[1641918824573,0.85504733,3210.3,3209.7,0.0022737]
[1641918824574,0.05727055,3210.2,3209.7,0.0022737]
[1641918824768,0.85504733,3210.3,3209.7,0.0022737]
[1641918825169,0.04594653,3210.2,3209.7,0.0022737]
[1641918825568,0.65423521,3210.0,3209.7,0.0022737]
[1641918826370,0.06875748,3209.9,3209.7,0.0022737]
[1641918826672,0.7792,3209.9,3209.7,0.0022737]
[1641918827821,1.42926111,3209.9,3209.7,0.0022737]
[1641918828019,5.81442434,3209.8,3209.7,0.0022737]
[1641918828821,6.3,3209.7,3208.1,0.77925]
[1641918829022,6.3,3209.7,3208.0,6.3986456]
[1641918829023,1.55873,3209.6,3208.0,6.3986456]
[1641918829224,0.41917584,3209.5,3208.4,0.0073895]
[1641918829422,0.374,3209.5,3208.4,0.0073895]
[1641918830221,0.50706211,3209.1,3208.4,0.0073895]
[1641918830423,1.14161727,3208.5,3208.4,0.0073895]
[1641918831477,0.4794,3209.1,3208.4,0.0073895]
[1641918831674,4.1105,3209.6,3208.4,0.0073895]
[1641918831675,3.8105,3209.6,3208.6,0.67823604]
[1641918831872,3.8105,3209.6,3208.4,3.45139634]
[1641918831873,0.77919,3209.9,3208.4,3.12424307]
[1641918832073,1.07919,3209.9,3208.7,0.00568423]
[1641918832375,1.55859,3209.8,3208.5,0.00682108]
[1641918832575,0.93491144,3208.8,3208.5,0.00682108]
[1641918833173,1.2254,3210.1,3208.5,0.00682108]
[1641918833574,0.00170527,3210.0,3208.5,0.00682108]
[1641918833773,0.00170527,3210.0,3208.4,3.0311723]
[1641918833774,0.78087527,3210.0,3208.4,3.0311723]
[1641918833974,0.00795793,3209.9,3208.4,3.0311723]
[1641918834375,0.00738951,3209.8,3208.5,0.01229929]
[1641918834574,0.95262947,3209.3,3209.0,0.51694842]
[1641918834775,0.00682108,3209.7,3209.0,0.51694842]
[1641918834977,0.00397897,3209.2,3209.1,2.82153482]
[1641918835238,0.00625266,3209.6,3209.0,0.51694842]
[1641918835437,0.00397897,3209.2,3208.8,0.25]
[1641918835639,0.00568424,3209.5,3208.8,0.25]
[1641918835837,0.03980189,3209.0,3208.8,0.25]
[1641918836039,0.00511581,3209.4,3208.8,0.25]
[1641918836239,0.0022737,3208.9,3208.8,0.25]
[1641918836440,0.00454739,3209.3,3208.8,4.37457255]
[1641918836639,0.0022737,3208.9,3208.8,4.37457255]
[1641918836842,1.14900997,3209.2,3208.8,3.66481]
[1641918837041,0.0022737,3208.9,3208.8,3.66481]
[1641918837238,0.00341054,3209.1,3208.8,3.66481]
[1641918837441,0.0022737,3208.9,3208.8,3.66481]
[1641918837644,0.00284212,3209.0,3208.8,3.66481]
[1641918837841,0.0022737,3208.9,3208.8,3.66481]
[1641918838242,0.0022737,3208.9,3208.8,6.64407801]
[1641918838443,0.0022737,3208.9,3208.8,3.66481]
[1641918838641,0.0022737,3208.9,3208.8,4.35688064]
[1641918838873,0.0022737,3208.9,3208.8,0.16481]
[1641918839277,4.40691822,3211.5,3208.8,0.01212214]
[1641918839476,0.65097954,3212.3,3208.8,0.01212214]
[1641918839477,2.3731,3211.9,3209.8,0.01291832]
[1641918839678,2.3731,3211.9,3209.8,0.26291832]
[1641918840076,2.3731,3211.9,3210.4,0.7787]
[1641918840280,1.06152859,3211.1,3210.5,0.50553968]
[1641918840475,1.06152859,3211.1,3210.2,0.25]
[1641918840678,0.01193689,3211.0,3210.2,0.25]
[1641918840877,0.0468328,3210.9,3210.2,0.25]
[1641918841076,0.01136846,3210.9,3210.2,0.25]
[1641918841276,0.01080004,3210.8,3210.2,0.25]
[1641918841676,0.01023162,3210.7,3210.2,0.86208281]
[1641918842076,0.00966319,3210.6,3210.2,0.86208281]
[1641918842276,0.00966319,3210.6,3210.2,0.61208281]
[1641918842477,1.06152859,3211.1,3210.4,0.03256973]
[1641918842478,0.00909477,3210.5,3210.4,0.03256973]
[1641918843421,0.00909477,3210.5,3208.8,3.10481477]